[Event "Late-Titled-Tuesday-Blitz-October-03-2023"]
[Site "Chess.com"]
[Date "2023.10.03"]
[Round "5"]
[White "mfwagnerpeixoto"]
[Black "FERNANDEZL1983"]
[Result "0-1"]
[WhiteElo "2329"]
[BlackElo "2612"]
[TimeControl "180+1"]
[EndTime "14:53:49 PDT"]
[Termination "FERNANDEZL1983 won on time"]

1. e4 {[%clk 0:03:00.9]} 1... c5 {[%clk 0:02:53.1]} 2. Nf3 {[%clk 0:02:56.6]}
2... a6 {[%clk 0:02:45.2]} 3. g3 {[%clk 0:02:50.9]} 3... b5 {[%clk 0:02:40.7]}
4. Bg2 {[%clk 0:02:50.8]} 4... Bb7 {[%clk 0:02:39.8]} 5. d3 {[%clk 0:02:50.9]}
5... d6 {[%clk 0:02:40.2]} 6. O-O {[%clk 0:02:50.5]} 6... Nf6 {[%clk 0:02:39.6]}
7. a4 {[%clk 0:02:50.4]} 7... Nbd7 {[%clk 0:02:36.7]} 8. Re1 {[%clk 0:02:46]}
8... e5 {[%clk 0:02:35.9]} 9. c3 {[%clk 0:02:34.1]} 9... g6 {[%clk 0:02:32.7]}
10. Na3 {[%clk 0:02:33.2]} 10... Bc6 {[%clk 0:02:30.4]} 11. axb5 {[%clk
0:02:28.9]} 11... axb5 {[%clk 0:02:30.5]} 12. Qb3 {[%clk 0:02:27.2]} 12... Rb8
{[%clk 0:02:27.9]} 13. Ng5 {[%clk 0:02:22.8]} 13... Qe7 {[%clk 0:02:27.4]} 14.
f4 {[%clk 0:02:10.5]} 14... h6 {[%clk 0:02:27.1]} 15. Nf3 {[%clk 0:02:02.5]}
15... Bg7 {[%clk 0:02:27.2]} 16. Nh4 {[%clk 0:02:00.9]} 16... b4 {[%clk
0:02:18.3]} 17. cxb4 {[%clk 0:01:51.5]} 17... Rxb4 {[%clk 0:02:16.6]} 18. Qc2
{[%clk 0:01:45.3]} 18... O-O {[%clk 0:02:15.3]} 19. Nc4 {[%clk 0:01:43.4]} 19...
exf4 {[%clk 0:02:06.6]} 20. Bxf4 {[%clk 0:01:40.5]} 20... Ng4 {[%clk 0:02:04.9]}
21. h3 {[%clk 0:01:08.6]} 21... Bd4+ {[%clk 0:02:01.8]} 22. Kh1 {[%clk
0:01:08.2]} 22... Nge5 {[%clk 0:02:02.1]} 23. Bxh6 {[%clk 0:00:59.1]} 23... Nxc4
{[%clk 0:02:00.5]} 24. Bxf8 {[%clk 0:00:55.1]} 24... Nxf8 {[%clk 0:01:54.5]} 25.
dxc4 {[%clk 0:00:52.2]} 25... Rxb2 {[%clk 0:01:55]} 26. Qd1 {[%clk 0:00:36.5]}
26... Qg5 {[%clk 0:01:53.3]} 27. Qg4 {[%clk 0:00:29.4]} 27... Qxg4 {[%clk
0:01:48.8]} 28. hxg4 {[%clk 0:00:28]} 28... Be5 {[%clk 0:01:48.7]} 29. Ra3
{[%clk 0:00:22.4]} 29... Ne6 {[%clk 0:01:48.3]} 30. Kh2 {[%clk 0:00:17.4]} 30...
Kg7 {[%clk 0:01:40.4]} 31. Nf3 {[%clk 0:00:17.7]} 31... Bf6 {[%clk 0:01:33]} 32.
Ra6 {[%clk 0:00:15.8]} 32... Nd8 {[%clk 0:01:18.3]} 33. g5 {[%clk 0:00:12.4]}
33... Be7 {[%clk 0:01:18.3]} 34. Kg1 {[%clk 0:00:09.5]} 34... Bb7 {[%clk
0:01:17.8]} 35. Ra7 {[%clk 0:00:09.7]} 35... Ne6 {[%clk 0:01:17.4]} 36. e5
{[%clk 0:00:08.9]} 36... Nxg5 {[%clk 0:01:08.8]} 37. Rxb7 {[%clk 0:00:07.1]}
37... Rxb7 {[%clk 0:01:06.3]} 38. Nxg5 {[%clk 0:00:07.3]} 38... Rb3 {[%clk
0:01:06.5]} 39. Ne4 {[%clk 0:00:06.7]} 39... dxe5 {[%clk 0:01:06.1]} 40. Rd1
{[%clk 0:00:06.9]} 40... f5 {[%clk 0:01:06.2]} 41. Nd6 {[%clk 0:00:06.7]} 41...
e4 {[%clk 0:01:05.5]} 42. Nb5 {[%clk 0:00:06.8]} 42... Rxg3 {[%clk 0:01:04.8]}
43. Rd7 {[%clk 0:00:06.1]} 43... Kf6 {[%clk 0:01:04.8]} 44. Kf2 {[%clk
0:00:06.5]} 44... Rb3 {[%clk 0:01:04.6]} 45. Rb7 {[%clk 0:00:05.6]} 45... Rb2+
{[%clk 0:01:03.9]} 46. Kg1 {[%clk 0:00:04.6]} 46... g5 {[%clk 0:01:03.2]} 47.
Rb6+ {[%clk 0:00:04.7]} 47... Ke5 {[%clk 0:01:03.2]} 48. Bf1 {[%clk 0:00:02.7]}
48... Kf4 {[%clk 0:01:02.3]} 49. Re6 {[%clk 0:00:02.4]} 49... Bd8 {[%clk
0:01:01.7]} 50. Nd6 {[%clk 0:00:02.2]} 50... g4 {[%clk 0:00:58.5]} 51. Re8
{[%clk 0:00:02.1]} 51... Bf6 {[%clk 0:00:56.3]} 52. Nf7 {[%clk 0:00:01.9]} 52...
Bd4+ {[%clk 0:00:55.6]} 53. Kh1 {[%clk 0:00:02.4]} 53... Kg3 {[%clk 0:00:54.9]}
0-1

[Event "Late-Titled-Tuesday-Blitz-October-03-2023"]
[Site "Chess.com"]
[Date "2023.10.03"]
[Round "5"]
[White "DucksParadise"]
[Black "Ducke13"]
[Result "1-0"]
[WhiteElo "2651"]
[BlackElo "2482"]
[TimeControl "180+1"]
[EndTime "14:53:53 PDT"]
[Termination "DucksParadise won on time"]

1. d4 {[%clk 0:03:00.9]} 1... Nf6 {[%clk 0:02:50.8]} 2. c4 {[%clk 0:02:59.5]}
2... g6 {[%clk 0:02:49.8]} 3. Nc3 {[%clk 0:02:57.3]} 3... Bg7 {[%clk 0:02:49.9]}
4. e4 {[%clk 0:02:55.9]} 4... d6 {[%clk 0:02:50.5]} 5. Be2 {[%clk 0:02:56.1]}
5... O-O {[%clk 0:02:49.1]} 6. Be3 {[%clk 0:02:54.9]} 6... Nc6 {[%clk
0:02:43.7]} 7. d5 {[%clk 0:02:52.5]} 7... Ne5 {[%clk 0:02:43.3]} 8. f4 {[%clk
0:02:50.7]} 8... Neg4 {[%clk 0:02:39.1]} 9. Bd2 {[%clk 0:02:50.4]} 9... Nh6
{[%clk 0:02:36.1]} 10. Nf3 {[%clk 0:02:47.7]} 10... e5 {[%clk 0:02:12]} 11. dxe6
{[%clk 0:02:42.7]} 11... Bxe6 {[%clk 0:02:02.9]} 12. O-O {[%clk 0:02:16.6]}
12... Qd7 {[%clk 0:01:55.9]} 13. h3 {[%clk 0:02:01.2]} 13... Rae8 {[%clk
0:01:47.6]} 14. Bd3 {[%clk 0:01:37.1]} 14... Bxh3 {[%clk 0:01:39.3]} 15. gxh3
{[%clk 0:01:38]} 15... Qxh3 {[%clk 0:01:39]} 16. Rf2 {[%clk 0:01:34.1]} 16...
Nfg4 {[%clk 0:01:36.5]} 17. Rg2 {[%clk 0:01:32.6]} 17... f5 {[%clk 0:01:10.6]}
18. exf5 {[%clk 0:01:21]} 18... Nxf5 {[%clk 0:01:05.1]} 19. Bxf5 {[%clk
0:00:30.3]} 19... gxf5 {[%clk 0:01:00.8]} 20. Be1 {[%clk 0:00:23.2]} 20... Rxe1+
{[%clk 0:00:13.5]} 21. Nxe1 {[%clk 0:00:18.8]} 21... Re8 {[%clk 0:00:08.4]} 22.
Qd5+ {[%clk 0:00:15.9]} 22... Kh8 {[%clk 0:00:07.5]} 23. Nf3 {[%clk 0:00:10]}
23... Re3 {[%clk 0:00:03.1]} 24. Ng5 {[%clk 0:00:07.9]} 24... Qh5 {[%clk
0:00:01.1]} 25. Nf7+ {[%clk 0:00:07.8]} 25... Kg8 {[%clk 0:00:01.5]} 26. Nh6+
{[%clk 0:00:07.9]} 26... Kf8 {[%clk 0:00:02.1]} 27. Qg8+ {[%clk 0:00:07.3]}
27... Ke7 {[%clk 0:00:02.2]} 28. Qxg7+ {[%clk 0:00:07.9]} 28... Kd8 {[%clk
0:00:02.7]} 29. Nxg4 {[%clk 0:00:07.9]} 29... fxg4 {[%clk 0:00:02.7]} 30. Rf1
{[%clk 0:00:06.7]} 30... Qc5 {[%clk 0:00:03.6]} 31. Kh1 {[%clk 0:00:05.8]} 31...
Rh3+ {[%clk 0:00:03.2]} 32. Rh2 {[%clk 0:00:06.2]} 32... Qe3 {[%clk 0:00:02.8]}
33. Qg8+ {[%clk 0:00:05.4]} 33... Kd7 {[%clk 0:00:02.9]} 34. Qxg4+ {[%clk
0:00:05.5]} 34... Kc6 {[%clk 0:00:01.8]} 35. Qxh3 {[%clk 0:00:06.4]} 1-0

[Event "Late-Titled-Tuesday-Blitz-October-03-2023"]
[Site "Chess.com"]
[Date "2023.10.03"]
[Round "5"]
[White "Grossboss19"]
[Black "ARTHURMOTIVATOR"]
[Result "1-0"]
[WhiteElo "2523"]
[BlackElo "2336"]
[TimeControl "180+1"]
[EndTime "14:53:57 PDT"]
[Termination "Grossboss19 won by resignation"]

1. e4 {[%clk 0:02:56.3]} 1... e5 {[%clk 0:02:59.6]} 2. Nf3 {[%clk 0:02:46.8]}
2... Nc6 {[%clk 0:03:00]} 3. Nc3 {[%clk 0:02:39.8]} 3... Nf6 {[%clk 0:02:59.9]}
4. Bd3 {[%clk 0:02:33.2]} 4... Bc5 {[%clk 0:02:56.2]} 5. O-O {[%clk 0:02:32.4]}
5... O-O {[%clk 0:02:49.9]} 6. a3 {[%clk 0:02:31.1]} 6... a6 {[%clk 0:02:49.8]}
7. b4 {[%clk 0:02:19.9]} 7... Ba7 {[%clk 0:02:48.4]} 8. Bb2 {[%clk 0:02:16.7]}
8... d6 {[%clk 0:02:48.4]} 9. h3 {[%clk 0:02:00.9]} 9... Ne7 {[%clk 0:02:25.9]}
10. Ne2 {[%clk 0:01:59]} 10... Ng6 {[%clk 0:02:23.8]} 11. c4 {[%clk 0:01:56.6]}
11... Nh5 {[%clk 0:02:20.4]} 12. Bc2 {[%clk 0:01:52.3]} 12... Ngf4 {[%clk
0:02:17.3]} 13. Nxf4 {[%clk 0:01:51.6]} 13... Nxf4 {[%clk 0:02:16.8]} 14. d4
{[%clk 0:01:52]} 14... exd4 {[%clk 0:01:59.8]} 15. Bxd4 {[%clk 0:01:47]} 15...
Bxd4 {[%clk 0:01:58.3]} 16. Nxd4 {[%clk 0:01:46.4]} 16... Qg5 {[%clk 0:01:39.9]}
17. g3 {[%clk 0:01:09.6]} 17... Nxh3+ {[%clk 0:01:34.5]} 18. Kh2 {[%clk
0:01:02.6]} 18... Qh6 {[%clk 0:01:29.7]} 19. Kg2 {[%clk 0:01:01]} 19... Nf4+
{[%clk 0:01:18.7]} 20. gxf4 {[%clk 0:00:57.6]} 20... Bh3+ {[%clk 0:01:18.6]} 21.
Kf3 {[%clk 0:00:50.7]} 21... f5 {[%clk 0:01:01.2]} 22. Nxf5 {[%clk 0:00:32.4]}
22... Rxf5 {[%clk 0:00:56.6]} 23. exf5 {[%clk 0:00:33.3]} 23... Re8 {[%clk
0:00:41.8]} 24. Rg1 {[%clk 0:00:20.6]} 24... Qf6 {[%clk 0:00:35.8]} 25. Kg3
{[%clk 0:00:19.1]} 25... Qh6 {[%clk 0:00:23.5]} 26. Rh1 {[%clk 0:00:18.9]} 26...
Qf6 {[%clk 0:00:18.9]} 27. Rxh3 {[%clk 0:00:17.9]} 27... h6 {[%clk 0:00:19.8]}
28. Qd5+ {[%clk 0:00:17.5]} 28... Kh8 {[%clk 0:00:20.3]} 29. Kg2 {[%clk
0:00:16.3]} 29... Qxa1 {[%clk 0:00:19.4]} 30. f6 {[%clk 0:00:15.3]} 30... Qxf6
{[%clk 0:00:18.2]} 31. Qd3 {[%clk 0:00:15.3]} 31... Kg8 {[%clk 0:00:15.9]} 32.
Qh7+ {[%clk 0:00:14.2]} 32... Kf7 {[%clk 0:00:16]} 33. Rg3 {[%clk 0:00:13.6]}
33... Rg8 {[%clk 0:00:11.7]} 34. Bg6+ {[%clk 0:00:13.2]} 34... Kf8 {[%clk
0:00:11.3]} 35. Re3 {[%clk 0:00:13.8]} 35... Qd8 {[%clk 0:00:04.3]} 36. Re8+
{[%clk 0:00:13.1]} 36... Qxe8 {[%clk 0:00:03.8]} 37. Bxe8 {[%clk 0:00:14]} 37...
c6 {[%clk 0:00:04.1]} 38. Bd7 {[%clk 0:00:12.8]} 38... d5 {[%clk 0:00:05]} 39.
Be6 {[%clk 0:00:12.9]} 39... Ke7 {[%clk 0:00:04.1]} 40. Qxg8 {[%clk 0:00:13.3]}
40... Kf6 {[%clk 0:00:04.9]} 41. cxd5 {[%clk 0:00:13.4]} 1-0

[Event "Late-Titled-Tuesday-Blitz-October-03-2023"]
[Site "Chess.com"]
[Date "2023.10.03"]
[Round "5"]
[White "GlavkonVVS"]
[Black "MathiasCasalaspro"]
[Result "0-1"]
[WhiteElo "2575"]
[BlackElo "2351"]
[TimeControl "180+1"]
[EndTime "14:53:57 PDT"]
[Termination "MathiasCasalaspro won by checkmate"]

1. c4 {[%clk 0:03:00.9]} 1... Nf6 {[%clk 0:02:59.8]} 2. Nc3 {[%clk 0:03:00.5]}
2... g6 {[%clk 0:03:00.4]} 3. g3 {[%clk 0:03:00.8]} 3... Bg7 {[%clk 0:03:00.4]}
4. Bg2 {[%clk 0:03:01.5]} 4... O-O {[%clk 0:03:01.1]} 5. e3 {[%clk 0:03:01.9]}
5... d6 {[%clk 0:03:01.1]} 6. Nge2 {[%clk 0:03:02.5]} 6... Nbd7 {[%clk
0:02:55.5]} 7. d4 {[%clk 0:03:03.4]} 7... c5 {[%clk 0:02:53.2]} 8. O-O {[%clk
0:03:03.3]} 8... a6 {[%clk 0:02:48.2]} 9. a3 {[%clk 0:03:03.3]} 9... Rb8 {[%clk
0:02:48.1]} 10. b4 {[%clk 0:03:02.9]} 10... b5 {[%clk 0:02:40.4]} 11. cxb5
{[%clk 0:02:58.6]} 11... axb5 {[%clk 0:02:41.3]} 12. Rb1 {[%clk 0:02:47.1]}
12... c4 {[%clk 0:02:41]} 13. a4 {[%clk 0:02:45.5]} 13... bxa4 {[%clk
0:02:40.9]} 14. Nxa4 {[%clk 0:02:37.4]} 14... Nb6 {[%clk 0:02:34.4]} 15. Nxb6
{[%clk 0:02:34.5]} 15... Qxb6 {[%clk 0:02:35.3]} 16. Nc3 {[%clk 0:02:34.1]}
16... Rd8 {[%clk 0:02:23]} 17. e4 {[%clk 0:02:33.6]} 17... Bb7 {[%clk
0:02:16.9]} 18. d5 {[%clk 0:02:25.5]} 18... Nd7 {[%clk 0:02:11.3]} 19. Be3
{[%clk 0:02:25.1]} 19... Qc7 {[%clk 0:02:03.4]} 20. Nb5 {[%clk 0:02:23.2]} 20...
Qc8 {[%clk 0:02:03.7]} 21. Na7 {[%clk 0:02:09]} 21... Qc7 {[%clk 0:02:03.8]} 22.
b5 {[%clk 0:02:08.4]} 22... Nc5 {[%clk 0:01:59.4]} 23. Nc6 {[%clk 0:02:05.5]}
23... Bxc6 {[%clk 0:01:59.4]} 24. bxc6 {[%clk 0:02:05.1]} 24... Rxb1 {[%clk
0:01:30.4]} 25. Qxb1 {[%clk 0:02:05.1]} 25... Rb8 {[%clk 0:01:31.3]} 26. Qc2
{[%clk 0:02:04.7]} 26... c3 {[%clk 0:01:27.8]} 27. Rb1 {[%clk 0:02:02.3]} 27...
Rb2 {[%clk 0:01:24.2]} 28. Rxb2 {[%clk 0:01:50.4]} 28... cxb2 {[%clk 0:01:25.1]}
29. Bxc5 {[%clk 0:01:41.7]} 29... dxc5 {[%clk 0:01:26]} 30. Bf1 {[%clk 0:01:42]}
30... Qb6 {[%clk 0:01:23.2]} 31. Bd3 {[%clk 0:01:41]} 31... Be5 {[%clk 0:01:21]}
32. Kg2 {[%clk 0:01:35.5]} 32... Bc7 {[%clk 0:01:19.6]} 33. Qb1 {[%clk
0:01:28.6]} 33... Qb4 {[%clk 0:01:17.9]} 34. Bc2 {[%clk 0:01:17.4]} 34... c4
{[%clk 0:01:17.7]} 35. Qd1 {[%clk 0:01:15]} 35... c3 {[%clk 0:01:16.1]} 36. h4
{[%clk 0:01:14.1]} 36... Qa3 {[%clk 0:01:11.6]} 37. Qd3 {[%clk 0:01:12.7]} 37...
Qa1 {[%clk 0:01:03.9]} 38. Bb1 {[%clk 0:01:12.5]} 38... Qa3 {[%clk 0:00:59.6]}
39. h5 {[%clk 0:01:10.1]} 39... Bb6 {[%clk 0:00:56.5]} 40. hxg6 {[%clk
0:01:03.3]} 40... hxg6 {[%clk 0:00:57.4]} 41. e5 {[%clk 0:01:02]} 41... Qc5
{[%clk 0:00:55.3]} 42. f4 {[%clk 0:00:23.2]} 42... Qf2+ {[%clk 0:00:53.1]} 43.
Kh3 {[%clk 0:00:23.6]} 43... Qg1 {[%clk 0:00:45.2]} 44. Qe4 {[%clk 0:00:21.4]}
44... Qf1+ {[%clk 0:00:41.6]} 45. Kh4 {[%clk 0:00:20.6]} 45... Bd8 {[%clk
0:00:18.4]} 46. e6 {[%clk 0:00:18.3]} 46... f5 {[%clk 0:00:16.5]} 47. Qd3 {[%clk
0:00:16.2]} 47... Qh1+ {[%clk 0:00:16.2]} 48. Kg5 {[%clk 0:00:15.6]} 48... Qh5#
{[%clk 0:00:17.1]} 0-1

[Event "Late-Titled-Tuesday-Blitz-October-03-2023"]
[Site "Chess.com"]
[Date "2023.10.03"]
[Round "5"]
[White "pedromartinez91"]
[Black "Vegan4future"]
[Result "1-0"]
[WhiteElo "2556"]
[BlackElo "2406"]
[TimeControl "180+1"]
[EndTime "14:53:58 PDT"]
[Termination "pedromartinez91 won by resignation"]

1. d4 {[%clk 0:03:00.9]} 1... d5 {[%clk 0:02:59.9]} 2. c4 {[%clk 0:03:00.9]}
2... c6 {[%clk 0:02:59.7]} 3. cxd5 {[%clk 0:02:57.4]} 3... cxd5 {[%clk
0:03:00.6]} 4. Nc3 {[%clk 0:02:55.8]} 4... Nf6 {[%clk 0:02:57.2]} 5. Bf4 {[%clk
0:02:52.7]} 5... Nc6 {[%clk 0:02:58.1]} 6. e3 {[%clk 0:02:52.3]} 6... a6 {[%clk
0:02:59]} 7. Bd3 {[%clk 0:02:48.3]} 7... Bg4 {[%clk 0:02:52.6]} 8. Qb3 {[%clk
0:02:44]} 8... Na5 {[%clk 0:02:48.7]} 9. Qa4+ {[%clk 0:02:44.2]} 9... Bd7 {[%clk
0:02:47.2]} 10. Qc2 {[%clk 0:02:43.7]} 10... Rc8 {[%clk 0:02:43.9]} 11. Nf3
{[%clk 0:02:40.9]} 11... g6 {[%clk 0:02:39.5]} 12. Ne5 {[%clk 0:02:34.9]} 12...
Bg7 {[%clk 0:02:35]} 13. O-O {[%clk 0:02:33.9]} 13... O-O {[%clk 0:02:33.6]} 14.
Qe2 {[%clk 0:02:25.7]} 14... Be6 {[%clk 0:02:13.1]} 15. h3 {[%clk 0:02:24.7]}
15... Nd7 {[%clk 0:02:08.5]} 16. Nf3 {[%clk 0:02:21]} 16... Nc4 {[%clk
0:01:58.7]} 17. Rfc1 {[%clk 0:02:18.7]} 17... b5 {[%clk 0:01:52.3]} 18. b3
{[%clk 0:02:18.7]} 18... Na5 {[%clk 0:01:43.6]} 19. Ng5 {[%clk 0:02:11]} 19...
Qb6 {[%clk 0:01:42.9]} 20. Rab1 {[%clk 0:01:56.2]} 20... h6 {[%clk 0:01:39.8]}
21. Nxe6 {[%clk 0:01:55.5]} 21... Qxe6 {[%clk 0:01:40.7]} 22. a4 {[%clk
0:01:53.2]} 22... b4 {[%clk 0:01:18.9]} 23. Na2 {[%clk 0:01:53]} 23... Rxc1+
{[%clk 0:01:19.7]} 24. Rxc1 {[%clk 0:01:53.2]} 24... Nxb3 {[%clk 0:01:19]} 25.
Rb1 {[%clk 0:01:47.6]} 25... Na5 {[%clk 0:01:09.8]} 26. Nxb4 {[%clk 0:01:47.7]}
26... g5 {[%clk 0:01:07.8]} 27. Bc7 {[%clk 0:01:44.9]} 27... Nc4 {[%clk
0:01:06.7]} 28. Nxd5 {[%clk 0:01:42.1]} 28... Na3 {[%clk 0:00:55.2]} 29. Ra1
{[%clk 0:01:22.3]} 29... Qxd5 {[%clk 0:00:55.1]} 30. Rxa3 {[%clk 0:01:22.4]}
30... Qc6 {[%clk 0:00:55.7]} 31. Qc2 {[%clk 0:01:15]} 31... Qxc2 {[%clk
0:00:50.4]} 32. Bxc2 {[%clk 0:01:15.9]} 32... Rc8 {[%clk 0:00:50.6]} 33. Rc3
{[%clk 0:01:15.6]} 33... Nb6 {[%clk 0:00:36.4]} 34. Bb3 {[%clk 0:01:04.4]} 34...
e6 {[%clk 0:00:35]} 35. a5 {[%clk 0:00:56.7]} 35... Nd7 {[%clk 0:00:30.2]} 36.
Rc2 {[%clk 0:00:52.8]} 36... Bf8 {[%clk 0:00:30.4]} 37. Bb6 {[%clk 0:00:51.7]}
37... Rxc2 {[%clk 0:00:29.9]} 38. Bxc2 {[%clk 0:00:52.6]} 38... Bb4 {[%clk
0:00:30.4]} 39. Bc7 {[%clk 0:00:41.8]} 39... e5 {[%clk 0:00:24.2]} 40. Bd3
{[%clk 0:00:32.5]} 40... exd4 {[%clk 0:00:22.9]} 41. Bxa6 {[%clk 0:00:29.6]}
41... dxe3 {[%clk 0:00:22.6]} 42. fxe3 {[%clk 0:00:27.9]} 42... Nc5 {[%clk
0:00:22.6]} 43. Bc4 {[%clk 0:00:24.9]} 43... Bd2 {[%clk 0:00:18.3]} 44. Kf2
{[%clk 0:00:23.2]} 44... Kg7 {[%clk 0:00:18.8]} 45. a6 {[%clk 0:00:23]} 45...
Nxa6 {[%clk 0:00:18.8]} 46. Bxa6 {[%clk 0:00:22.7]} 46... Kg6 {[%clk 0:00:19.7]}
47. Bd3+ {[%clk 0:00:22.5]} 47... f5 {[%clk 0:00:19.5]} 48. g4 {[%clk
0:00:22.7]} 1-0

[Event "Late-Titled-Tuesday-Blitz-October-03-2023"]
[Site "Chess.com"]
[Date "2023.10.03"]
[Round "5"]
[White "Byniolus"]
[Black "ArmanGhevondyanchess"]
[Result "1-0"]
[WhiteElo "2760"]
[BlackElo "2557"]
[TimeControl "180+1"]
[EndTime "14:53:59 PDT"]
[Termination "Byniolus won by resignation"]

1. d4 {[%clk 0:03:00.9]} 1... Nf6 {[%clk 0:02:59.1]} 2. Nf3 {[%clk 0:03:00.9]}
2... g6 {[%clk 0:02:59.5]} 3. Bf4 {[%clk 0:03:01.1]} 3... Bg7 {[%clk 0:02:59.8]}
4. e3 {[%clk 0:03:02]} 4... O-O {[%clk 0:03:00.2]} 5. Be2 {[%clk 0:03:02.6]}
5... d5 {[%clk 0:03:00.7]} 6. O-O {[%clk 0:03:02.5]} 6... c5 {[%clk 0:03:01.3]}
7. c3 {[%clk 0:03:03.2]} 7... Nc6 {[%clk 0:03:01.6]} 8. Nbd2 {[%clk 0:03:03.8]}
8... Nd7 {[%clk 0:03:01.5]} 9. Nb3 {[%clk 0:03:01.2]} 9... b6 {[%clk 0:03:00.9]}
10. h3 {[%clk 0:02:51.7]} 10... Bb7 {[%clk 0:03:00.9]} 11. Bh2 {[%clk
0:02:51.3]} 11... e5 {[%clk 0:03:00.8]} 12. a4 {[%clk 0:02:45.5]} 12... c4
{[%clk 0:02:57.7]} 13. Nbd2 {[%clk 0:02:41.7]} 13... e4 {[%clk 0:02:54.4]} 14.
Ne1 {[%clk 0:02:42.2]} 14... f5 {[%clk 0:02:52.2]} 15. b3 {[%clk 0:02:37.5]}
15... cxb3 {[%clk 0:02:50.8]} 16. Nxb3 {[%clk 0:02:37.3]} 16... g5 {[%clk
0:02:47.7]} 17. c4 {[%clk 0:02:24.8]} 17... f4 {[%clk 0:02:39.3]} 18. cxd5
{[%clk 0:02:14.8]} 18... Ne7 {[%clk 0:02:39.3]} 19. d6 {[%clk 0:02:09.5]} 19...
Ng6 {[%clk 0:02:36]} 20. a5 {[%clk 0:01:53.4]} 20... f3 {[%clk 0:02:29.5]} 21.
Bc4+ {[%clk 0:01:43.8]} 21... Kh8 {[%clk 0:02:29.6]} 22. a6 {[%clk 0:01:43.7]}
22... Bc8 {[%clk 0:02:26.4]} 23. Bd5 {[%clk 0:01:29.9]} 23... Rb8 {[%clk
0:02:19.4]} 24. Bxe4 {[%clk 0:01:23.5]} 24... fxg2 {[%clk 0:02:19.5]} 25. Bxg2
{[%clk 0:01:24.1]} 25... Nh4 {[%clk 0:02:19]} 26. Nf3 {[%clk 0:01:09.3]} 26...
Nxg2 {[%clk 0:02:18.2]} 27. Kxg2 {[%clk 0:01:10.2]} 27... g4 {[%clk 0:02:15.9]}
28. hxg4 {[%clk 0:01:06.5]} 28... Nf6 {[%clk 0:02:16]} 29. Ne5 {[%clk
0:01:02.3]} 29... Ne4 {[%clk 0:02:10.8]} 30. Nc6 {[%clk 0:00:30]} 30... Qh4
{[%clk 0:02:08.3]} 31. Bg3 {[%clk 0:00:26.6]} 31... Qg5 {[%clk 0:02:05.4]} 32.
f3 {[%clk 0:00:16.3]} 32... Nxg3 {[%clk 0:01:52.4]} 33. Kxg3 {[%clk 0:00:17.2]}
33... Bf6 {[%clk 0:01:40.7]} 34. Nxb8 {[%clk 0:00:13.4]} 34... Qh4+ {[%clk
0:01:40.7]} 35. Kg2 {[%clk 0:00:14]} 35... Rg8 {[%clk 0:01:34.1]} 36. Rh1 {[%clk
0:00:13.5]} 36... Qg5 {[%clk 0:01:34.1]} 37. Qd3 {[%clk 0:00:10.1]} 37... h6
{[%clk 0:01:31.6]} 38. Rag1 {[%clk 0:00:08.6]} 38... Bxg4 {[%clk 0:01:15.3]} 39.
Kf2 {[%clk 0:00:08]} 39... Qh4+ {[%clk 0:01:03.8]} 40. Rxh4 {[%clk 0:00:07.4]}
40... Bxh4+ {[%clk 0:01:04.7]} 41. Ke2 {[%clk 0:00:05.7]} 41... Bxf3+ {[%clk
0:01:04.4]} 42. Kxf3 {[%clk 0:00:06.6]} 42... Rxg1 {[%clk 0:01:05.1]} 43. d7
{[%clk 0:00:04.9]} 43... Rg3+ {[%clk 0:01:03.7]} 44. Ke4 {[%clk 0:00:05]} 44...
Kg7 {[%clk 0:00:59.9]} 45. Nc6 {[%clk 0:00:04.9]} 45... Rg4+ {[%clk 0:00:59.9]}
46. Kd5 {[%clk 0:00:05.3]} 46... Rg5+ {[%clk 0:01:00.2]} 47. Ne5 {[%clk
0:00:05.7]} 47... Rg1 {[%clk 0:00:58.8]} 48. Qe4 {[%clk 0:00:04.7]} 48... Bd8
{[%clk 0:00:50.6]} 49. Nc6 {[%clk 0:00:04.2]} 49... Rg5+ {[%clk 0:00:50.3]} 50.
Qe5+ {[%clk 0:00:04.8]} 50... Rxe5+ {[%clk 0:00:46]} 51. dxe5 {[%clk 0:00:05.7]}
51... Bc7 {[%clk 0:00:44.9]} 52. e6 {[%clk 0:00:05.5]} 52... h5 {[%clk
0:00:44.9]} 53. e7 {[%clk 0:00:06]} 53... h4 {[%clk 0:00:45.2]} 54. e8=Q {[%clk
0:00:05.8]} 54... h3 {[%clk 0:00:46.1]} 55. Qh5 {[%clk 0:00:05.8]} 1-0

[Event "Late-Titled-Tuesday-Blitz-October-03-2023"]
[Site "Chess.com"]
[Date "2023.10.03"]
[Round "5"]
[White "gabduschew"]
[Black "HajiyevKanan"]
[Result "1/2-1/2"]
[WhiteElo "2411"]
[BlackElo "2541"]
[TimeControl "180+1"]
[EndTime "14:53:59 PDT"]
[Termination "Game drawn by repetition"]

1. b3 {[%clk 0:03:00]} 1... c6 {[%clk 0:02:22.3]} 2. Bb2 {[%clk 0:02:59.3]} 2...
d5 {[%clk 0:02:23.2]} 3. e3 {[%clk 0:02:59.3]} 3... Nf6 {[%clk 0:02:23.3]} 4. f4
{[%clk 0:02:58.9]} 4... g6 {[%clk 0:02:23.8]} 5. Nf3 {[%clk 0:02:59]} 5... Bg7
{[%clk 0:02:24.2]} 6. Be2 {[%clk 0:02:57.4]} 6... Bg4 {[%clk 0:02:20.6]} 7. O-O
{[%clk 0:02:55.8]} 7... a5 {[%clk 0:02:17.9]} 8. a3 {[%clk 0:02:43]} 8... a4
{[%clk 0:02:16.1]} 9. b4 {[%clk 0:02:42.2]} 9... Nbd7 {[%clk 0:02:16.2]} 10. h3
{[%clk 0:02:40.2]} 10... Bxf3 {[%clk 0:02:16]} 11. Bxf3 {[%clk 0:02:38.9]} 11...
Qb6 {[%clk 0:01:59.1]} 12. Bd4 {[%clk 0:02:35]} 12... Qc7 {[%clk 0:01:56.4]} 13.
d3 {[%clk 0:02:31.3]} 13... O-O {[%clk 0:01:41.6]} 14. Nd2 {[%clk 0:02:25.5]}
14... b6 {[%clk 0:01:33.1]} 15. c4 {[%clk 0:02:21.7]} 15... e5 {[%clk
0:01:07.9]} 16. fxe5 {[%clk 0:02:14.9]} 16... Nxe5 {[%clk 0:01:08.8]} 17. cxd5
{[%clk 0:02:11.1]} 17... Nxd5 {[%clk 0:01:00.8]} 18. Bxd5 {[%clk 0:02:01.6]}
18... cxd5 {[%clk 0:00:59.3]} 19. Rc1 {[%clk 0:02:00.9]} 19... Qd6 {[%clk
0:00:52.1]} 20. Qe2 {[%clk 0:01:45.8]} 20... Rac8 {[%clk 0:00:51.2]} 21. Nb1
{[%clk 0:01:30.5]} 21... Rfe8 {[%clk 0:00:40.2]} 22. Nc3 {[%clk 0:01:27.1]}
22... Qd7 {[%clk 0:00:23.2]} 23. Qd1 {[%clk 0:01:02.2]} 23... b5 {[%clk
0:00:21.5]} 24. Bxe5 {[%clk 0:00:53.4]} 24... Rxe5 {[%clk 0:00:19.6]} 25. d4
{[%clk 0:00:53.9]} 25... Rxe3 {[%clk 0:00:18.6]} 26. Ne2 {[%clk 0:00:48.7]}
26... Rxa3 {[%clk 0:00:13.2]} 27. Rc5 {[%clk 0:00:38.6]} 27... Rxc5 {[%clk
0:00:11]} 28. dxc5 {[%clk 0:00:38.7]} 28... Rb3 {[%clk 0:00:09.3]} 29. Qd2
{[%clk 0:00:35.4]} 29... d4 {[%clk 0:00:09.1]} 30. Nc1 {[%clk 0:00:33]} 30...
Re3 {[%clk 0:00:08.2]} 31. Nd3 {[%clk 0:00:31.5]} 31... h5 {[%clk 0:00:05.7]}
32. Qc2 {[%clk 0:00:23.2]} 32... f5 {[%clk 0:00:05.9]} 33. c6 {[%clk 0:00:21.7]}
33... Qc7 {[%clk 0:00:06.5]} 34. Nf4 {[%clk 0:00:20.5]} 34... Kh7 {[%clk
0:00:06.7]} 35. Nxh5 {[%clk 0:00:15.6]} 35... gxh5 {[%clk 0:00:05.5]} 36. Qxf5+
{[%clk 0:00:15.3]} 36... Kh8 {[%clk 0:00:06]} 37. Qxh5+ {[%clk 0:00:14.8]} 37...
Kg8 {[%clk 0:00:06.2]} 38. Qd5+ {[%clk 0:00:14.7]} 38... Kh8 {[%clk 0:00:06.5]}
39. Qh5+ {[%clk 0:00:14.2]} 39... Kg8 {[%clk 0:00:06.6]} 40. Qd5+ {[%clk
0:00:14.1]} 40... Kh8 {[%clk 0:00:07.2]} 41. Qh5+ {[%clk 0:00:13.2]} 1/2-1/2